fUST/lending_fUST_20250407
["ID","MTS","AMOUNT","RATE_DAILY","PERIOD"]
[357326871,1744007456330,-867.45,0.00038904,7]
[357326873,1744007456340,-500.0,0.00038904,7]
[357326875,1744007456350,-500.0,0.00038904,7]
[357326877,1744007456359,-500.0,0.00038904,7]
[357326879,1744007456369,-500.0,0.00038904,7]
[357326881,1744007456378,-500.0,0.00038904,7]
[357326883,1744007456388,-500.0,0.00038904,7]
[357326885,1744007456397,-500.0,0.00038904,7]
[357326887,1744007456406,-500.00000001,0.00038904,30]
[357326889,1744007456416,-500.0,0.00038904,7]
[357326891,1744007456425,-500.0,0.00038904,7]
[357326894,1744007456435,-500.0,0.00038904,7]
[357326896,1744007456443,-500.0,0.00038904,7]
[357326898,1744007456453,-500.0,0.00038904,7]
[357326900,1744007456462,-430.17281134,0.00038904,7]
[357326902,1744007456471,-500.0,0.00038904,7]
[357326904,1744007456480,-500.0,0.00038904,7]
[357326906,1744007456490,-500.0,0.00038904,7]
[357326908,1744007456499,-500.0,0.00038904,7]
[357326910,1744007456509,-510.34274955,0.00038904,7]
[357326912,1744007456524,-500.0,0.00038904,7]
[357326914,1744007456533,-500.0,0.00038904,7]
[357326916,1744007456542,-533.35,0.00038904,7]
[357326918,1744007456551,-906.27,0.00038904,7]
[357326920,1744007456560,-500.0,0.00038904,7]
[357326922,1744007456569,-500.0,0.00038904,7]
[357326924,1744007456586,-670.8,0.00038904,7]
[357326926,1744007456608,-500.0,0.00038904,7]
[357326928,1744007456632,-500.0,0.00038904,7]
[357326930,1744007456655,-500.0,0.00038904,7]
[357326932,1744007456677,-500.0,0.00038904,7]
[357326934,1744007456699,-500.0,0.00038904,7]
[357326936,1744007456722,-500.0,0.00038904,7]
[357326938,1744007456744,-500.0,0.00038904,7]
[357326940,1744007456768,-500.0,0.00038904,7]
[357326942,1744007456790,-500.0,0.00038904,7]
[357326944,1744007456813,-517.39,0.00038904,7]
[357326946,1744007456834,-500.0,0.00038904,7]
[357326948,1744007456856,-500.0,0.00038904,7]
[357326950,1744007456876,-511.14770361,0.00038904,7]
[357326952,1744007456897,-500.0,0.00038904,7]
[357326954,1744007456918,-534.6,0.00038904,7]
[357326956,1744007456939,-500.0,0.00038904,7]
[357326958,1744007456960,-500.0,0.00038904,7]
[357326960,1744007456981,-500.0,0.00038904,7]
[357326962,1744007457002,-500.0,0.00038904,7]
[357326964,1744007457047,-1086.53,0.00038904,7]
[357326966,1744007457107,-500.0,0.00038904,7]
[357326968,1744007457157,-576.65,0.00038904,7]
[357326970,1744007457189,-162.6935148,0.00038904,7]
[357326972,1744007457199,-500.0,0.00038904,7]
[357326974,1744007457209,-500.0,0.00038904,7]
[357326976,1744007457218,-500.0,0.00038904,7]
[357326978,1744007457227,-500.0,0.00038904,7]
[357326980,1744007457237,-500.0,0.00038904,7]
[357326982,1744007457247,-500.0,0.00038904,7]
[357326984,1744007457256,-500.0,0.00038904,7]
[357326987,1744007457272,-500.0,0.00038904,7]
[357326989,1744007457283,-268.20740961,0.00038904,7]
[357326991,1744007457292,-500.0,0.00038904,7]
[357326993,1744007457301,-500.0,0.00038904,7]
[357326995,1744007457311,-500.0,0.00038904,7]
[357326997,1744007457320,-500.0,0.00038904,7]
[357326999,1744007457330,-500.0,0.00038904,7]
[357327001,1744007457339,-500.0,0.00038904,7]
[357327003,1744007457348,-1107.37,0.00038904,7]
[357327005,1744007457358,-500.0,0.00038904,7]
[357327007,1744007457368,-500.0,0.00038904,7]
[357327009,1744007457378,-500.0,0.00038904,7]
[357327011,1744007457388,-500.0,0.00038904,7]
[357327013,1744007457398,-1447.2,0.00038904,7]
[357327015,1744007457407,-500.0,0.00038904,7]
[357327017,1744007457418,-500.0,0.00038904,7]
[357327019,1744007457427,-513.43,0.00038904,7]
[357327021,1744007457436,-500.0,0.00038904,7]
[357327023,1744007457446,-151.0,0.00038904,14]
[357327025,1744007457455,-151.0,0.00038904,14]
[357327027,1744007457465,-151.0,0.00038904,14]
[357327029,1744007457474,-500.0,0.00038904,7]
[357327031,1744007457483,-566.61,0.00038904,7]
[357327034,1744007457493,-500.0,0.00038904,7]
[357327036,1744007457502,-500.0,0.00038904,7]
[357327038,1744007457515,-939.19,0.00038904,7]
[357327040,1744007457525,-500.0,0.00038904,7]
[357327042,1744007457534,-1423.54,0.00038904,7]
[357327044,1744007457543,-2008.01,0.00038904,7]
[357327046,1744007457553,-500.0,0.00038904,7]
[357327048,1744007457562,-1800.94,0.00038904,7]
[357327050,1744007457571,-901.74,0.00038904,7]
[357327052,1744007457580,-500.0,0.00038904,7]
[357327054,1744007457589,-500.0,0.00038904,7]
[357327056,1744007457598,-500.0,0.00038904,7]
[357327058,1744007457607,-500.0,0.00038904,7]
[357327060,1744007457615,-749.66,0.00038904,7]
[357327062,1744007457625,-500.0,0.00038904,7]
[357327064,1744007457634,-500.0,0.00038904,7]
[357327066,1744007457643,-500.0,0.00038904,7]
[357327068,1744007457656,-500.0,0.00038904,7]
[357327070,1744007457665,-500.0,0.00038904,7]
[357327072,1744007457675,-500.0,0.00038904,7]
[357327074,1744007457684,-500.0,0.00038904,7]
[357327076,1744007457696,-500.0,0.00038904,7]
[357327078,1744007457706,-500.0,0.00038904,7]
[357327080,1744007457715,-697.53,0.00038904,7]
[357327082,1744007457725,-500.0,0.00038904,7]
[357327084,1744007457736,-934.77,0.00038904,7]
[357327086,1744007457745,-468.48488773,0.00038904,7]
[357327088,1744007457755,-500.0,0.00038904,7]
[357327090,1744007457766,-500.0,0.00038904,7]
[357327093,1744007457776,-500.0,0.00038904,7]
[357327094,1744007457785,-500.0,0.00038904,7]
[357327097,1744007457794,-500.0,0.00038904,7]
[357327099,1744007457804,-500.0,0.00038904,7]
[357327101,1744007457813,-1984.09,0.00038904,7]
[357327103,1744007457823,-500.0,0.00038904,7]
[357327105,1744007457832,-490.919075,0.00038904,2]
[357327107,1744007457842,-935.62,0.00038904,7]
[357327109,1744007457851,-946.46,0.00038904,7]
[357327111,1744007457861,-500.0,0.00038904,7]
[357327113,1744007457871,-490.919069,0.00038904,2]
[357327115,1744007457881,-500.0,0.00038904,7]
[357327117,1744007457890,-515.1,0.00038904,7]
[357327119,1744007457900,-512.76,0.00038904,7]
[357327121,1744007457909,-500.0,0.00038904,7]
[357327123,1744007457919,-690.44,0.00038904,7]
[357327125,1744007457929,-151.0,0.00038904,14]
[357327127,1744007457939,-500.0,0.00038904,7]
[357327129,1744007457949,-500.0,0.00038904,7]
[357327131,1744007457959,-507.33981391,0.00038904,7]
[357327133,1744007457968,-838.21,0.00038904,7]
[357327135,1744007457978,-500.0,0.00038904,7]
[357327137,1744007457987,-500.0,0.00038904,7]
[357327139,1744007457999,-847.87,0.00038904,7]
[357327141,1744007458009,-500.0,0.00038904,7]
[357327143,1744007458023,-1589.02,0.00038904,7]
[357327146,1744007458033,-500.0,0.00038904,7]
[357327147,1744007458043,-500.0,0.00038904,7]
[357327149,1744007458053,-500.0,0.00038904,7]
[357327151,1744007458062,-500.0,0.00038904,7]
[357327153,1744007458072,-1158.58,0.00038904,7]
[357327155,1744007458082,-500.0,0.00038904,7]
[357327158,1744007458092,-952.13,0.00038904,7]
[357327160,1744007458102,-500.0,0.00038904,7]
[357327162,1744007458111,-500.0,0.00038904,7]
[357327164,1744007458120,-573.45,0.00038904,7]
[357327166,1744007458130,-500.0,0.00038904,7]
[357327168,1744007458139,-500.0,0.00038904,7]
[357327170,1744007458149,-1057.47,0.00038904,7]
[357327172,1744007458158,-500.0,0.00038904,7]
[357327174,1744007458168,-500.0,0.00038904,7]
[357327176,1744007458178,-640.71804588,0.00038904,7]
[357327178,1744007458187,-610.23512498,0.00038904,7]
[357327180,1744007458196,-500.0,0.00038904,7]
[357327182,1744007458206,-500.0,0.00038904,7]
[357327184,1744007458215,-500.0,0.00038904,7]
[357327186,1744007458225,-500.0,0.00038904,7]
[357327188,1744007458234,-500.0,0.00038904,7]
[357327190,1744007458244,-694.43,0.00038904,7]
[357327192,1744007458253,-500.0,0.00038904,7]
[357327194,1744007458265,-500.0,0.00038904,7]
[357327196,1744007458275,-500.0,0.00038904,7]
[357327198,1744007458284,-500.0,0.00038904,7]
[357327200,1744007458293,-571.11,0.00038904,7]
[357327202,1744007458304,-500.0,0.00038904,7]
[357327204,1744007458314,-500.0,0.00038904,7]
[357327206,1744007458324,-500.0,0.00038904,7]
[357327208,1744007458333,-500.0,0.00038904,7]
[357327210,1744007458343,-528.03,0.00038904,7]
[357327212,1744007458354,-500.0,0.00038904,7]
[357327214,1744007458363,-613.99,0.00038904,7]
[357327216,1744007458373,-500.0,0.00038904,7]
[357327218,1744007458382,-500.0,0.00038904,7]
[357327220,1744007458392,-1665.49,0.00038904,7]
[357327222,1744007458402,-928.88,0.00038904,7]
[357327224,1744007458412,-500.0,0.00038904,7]
[357327226,1744007458421,-772.18,0.00038904,7]
[357327228,1744007458430,-500.0,0.00038904,7]
[357327230,1744007458439,-500.0,0.00038904,7]
[357327232,1744007458449,-500.0,0.00038904,7]
[357327234,1744007458458,-500.0,0.00038904,7]
[357327236,1744007458467,-500.0,0.00038904,7]
[357327238,1744007458476,-500.0,0.00038904,7]
[357327240,1744007458485,-500.0,0.00038904,7]
[357327242,1744007458495,-1501.09,0.00038904,2]
[357327244,1744007458504,-500.0,0.00038904,7]
[357327246,1744007458516,-500.0,0.00038904,7]
[357327248,1744007458526,-500.0,0.00038904,7]
[357327250,1744007458537,-586.05,0.00038904,7]
[357327252,1744007458546,-500.0,0.00038904,7]
[357327254,1744007458556,-722.91,0.00038904,7]
[357327256,1744007458565,-500.0,0.00038904,7]
[357327258,1744007458575,-1033.34,0.00038904,7]
[357327260,1744007458585,-500.0,0.00038904,7]
[357327262,1744007458595,-500.0,0.00038904,7]
[357327263,1744007458610,-500.0,0.00038904,7]
[357327265,1744007458620,-196.47307023,0.00038904,7]
[357327267,1744007458629,-500.0,0.00038904,7]
[357327269,1744007458639,-522.77,0.00038904,7]
[357327271,1744007458651,-500.0,0.00038904,7]
[357327273,1744007458661,-500.0,0.00038904,7]
[357327275,1744007458672,-571.83,0.00038904,7]
[357327277,1744007458682,-536.37695945,0.00038904,7]
[357327279,1744007458692,-500.0,0.00038904,7]
[357327281,1744007458703,-500.0,0.00038904,7]
[357327283,1744007458714,-391.0511212,0.00038904,7]
[357327285,1744007458724,-500.0,0.00038904,7]
[357327288,1744007458734,-523.84,0.00038904,7]
[357327289,1744007458745,-500.0,0.00038904,7]
[357327292,1744007458756,-500.0,0.00038904,7]
[357327294,1744007458769,-500.0,0.00038904,7]
[357327295,1744007458779,-500.0,0.00038904,7]
[357327298,1744007458788,-500.0,0.00038904,7]
[357327300,1744007458798,-500.0,0.00038904,7]
[357327302,1744007458807,-500.0,0.00038904,7]
[357327303,1744007458817,-598.23612038,0.00038904,7]
[357327305,1744007458828,-833.69,0.00038904,7]
[357327308,1744007458839,-2025.36,0.00038904,7]
[357327310,1744007458849,-500.0,0.00038904,7]
[357327312,1744007458859,-500.0,0.00038904,7]
[357327314,1744007458868,-500.0,0.00038904,7]
[357327316,1744007458878,-1592.74,0.00038904,7]
[357327318,1744007458888,-500.0,0.00038904,7]
[357327320,1744007458898,-603.67,0.00038904,7]
[357327322,1744007458907,-500.0,0.00038904,7]
[357327324,1744007458918,-2054.09,0.00038904,7]
[357327326,1744007458928,-500.0,0.00038904,7]
[357327328,1744007458938,-500.0,0.00038904,7]
[357327330,1744007458948,-4027.87,0.00038904,7]
[357327332,1744007458958,-1703.64,0.00038904,7]
[357327334,1744007458968,-1206.14,0.00038904,7]
[357327336,1744007458978,-2750.5,0.00038904,7]
[357327338,1744007458987,-500.0,0.00038904,7]
[357327340,1744007458997,-500.0,0.00038904,7]
[357327342,1744007459006,-5383.4,0.00038904,7]
[357327344,1744007459021,-500.0,0.00038904,7]
[357327346,1744007459031,-1044.92,0.00038904,7]
[357327348,1744007459040,-752.29,0.00038904,7]
[357327350,1744007459050,-16324.2,0.00038904,7]
[357327352,1744007459060,-5668.81,0.00038904,7]
[357327354,1744007459069,-556.96,0.00038904,7]
[357327356,1744007459079,-9467.87,0.00038904,7]
[357327358,1744007459089,-7826.43,0.00038904,7]
[357327360,1744007459098,-500.0,0.00038904,7]
[357327362,1744007459108,-704.24,0.00038904,7]
[357327364,1744007459119,-500.0,0.00038904,7]
[357327366,1744007459129,-500.0,0.00038904,7]
[357327368,1744007459139,-1000.0,0.00038904,7]
[357327383,1744007459280,-2032.66,0.00038904,7]
[357327385,1744007459291,-500.0,0.00038904,7]
[357327387,1744007459301,-500.0,0.00038904,7]
[357327389,1744007459312,-500.0,0.00038904,7]
[357327392,1744007459322,-627.1,0.00038904,7]
[357327393,1744007459333,-229.29997383,0.00038904,7]
[357327395,1744007459343,-500.0,0.00038904,7]
[357327398,1744007459354,-500.0,0.00038904,7]
[357327400,1744007459364,-500.0,0.00038904,7]
[357327402,1744007459374,-1564.82,0.00038904,7]
[357327404,1744007459384,-1951.0,0.00038904,7]
[357327406,1744007459394,-500.0,0.00038904,7]
[357327408,1744007459404,-720.69,0.00038904,7]
[357327410,1744007459413,-603.99,0.00038904,7]
[357327411,1744007459423,-500.0,0.00038904,7]
[357327414,1744007459432,-1960.56,0.00038904,7]
[357327416,1744007459442,-1748.88,0.00038904,7]
[357327417,1744007459452,-500.0,0.00038904,7]
[357327420,1744007459462,-500.0,0.00038904,7]
[357327421,1744007459471,-2029.77,0.00038904,7]
[357327423,1744007459481,-500.0,0.00038904,7]
[357327425,1744007459491,-1368.39,0.00038904,2]
[357327427,1744007459501,-588.58,0.00038904,7]
[357327429,1744007459511,-601.11,0.00038904,7]
[357327431,1744007459526,-500.0,0.00038904,7]
[357327433,1744007459536,-594.74606521,0.00038904,7]
[357327435,1744007459546,-500.0,0.00038904,7]
[357327437,1744007459556,-1802.77,0.00038904,7]
[357327439,1744007459566,-211.3441377,0.00038904,7]
[357327441,1744007459576,-638.37,0.00038904,7]
[357327443,1744007459586,-500.0,0.00038904,7]
[357327445,1744007459595,-1000.0,0.00038904,30]
[357327447,1744007459605,-500.0,0.00038904,7]
[357327449,1744007459615,-3642.09,0.00038904,7]
[357327451,1744007459627,-500.0,0.00038904,7]
[357327453,1744007459636,-1347.37,0.00038904,7]
[357327456,1744007459646,-1391.95,0.00038904,7]
[357327458,1744007459659,-500.0,0.00038904,7]
[357327460,1744007459669,-2126.62,0.00038904,7]
[357327462,1744007459681,-796.84,0.00038904,7]
[357327464,1744007459691,-617.31,0.00038904,7]
[357327466,1744007459702,-5186.58,0.00038904,7]
[357327468,1744007459711,-1111.1,0.00038904,7]
[357327470,1744007459721,-500.0,0.00038904,7]
[357327471,1744007459731,-1058.19,0.00038904,7]
[357327473,1744007459741,-500.0,0.00038904,7]
[357327475,1744007459751,-7684.6,0.00038904,7]
[357327477,1744007459762,-503.58,0.00038904,7]
[357327479,1744007459775,-500.0,0.00038904,7]
[357327482,1744007459785,-781.69,0.00038904,7]
[357327483,1744007459795,-535.22882063,0.00038904,7]
[357327485,1744007459804,-500.0,0.00038904,7]
[357327487,1744007459814,-526.85,0.00038904,7]
[357327489,1744007459823,-500.0,0.00038904,7]
[357327491,1744007459834,-500.0,0.00038904,7]
[357327493,1744007459844,-500.0,0.00038904,7]
[357327495,1744007459854,-6861.13,0.00038904,7]
[357327497,1744007459864,-500.0,0.00038904,7]
[357327499,1744007459874,-500.0,0.00038904,7]
[357327501,1744007459886,-500.0,0.00038904,7]
[357327503,1744007459896,-500.0,0.00038904,7]
[357327505,1744007459906,-500.0,0.00038904,7]
[357327507,1744007459916,-500.0,0.00038904,7]
[357327509,1744007459926,-7716.74,0.00038904,7]
[357327512,1744007459936,-500.0,0.00038904,7]
[357327513,1744007459946,-2269.56,0.00038904,7]
[357327516,1744007459956,-500.0,0.00038904,7]
[357327518,1744007459966,-500.0,0.00038904,7]
[357327520,1744007459977,-178.86475748,0.00038904,7]
[357327521,1744007459987,-4907.12,0.00038904,7]
[357327523,1744007459997,-504.85,0.00038904,7]
[357327525,1744007460007,-500.0,0.00038904,7]
[357327527,1744007460020,-500.0,0.00038904,7]
[357327529,1744007460029,-500.0,0.00038904,7]
[357327531,1744007460039,-542.23,0.00038904,7]
[357327533,1744007460050,-500.0,0.00038904,7]
[357327535,1744007460060,-2640.34,0.00038904,7]
[357327537,1744007460070,-2111.69,0.00038904,7]
[357327539,1744007460081,-500.0,0.00038904,7]
[357327541,1744007460090,-500.0,0.00038904,7]
[357327543,1744007460100,-500.0,0.00038904,7]
[357327545,1744007460110,-1000.0,0.00038904,3]
[357327547,1744007460120,-2900.21,0.00038904,7]
[357327549,1744007460130,-500.0,0.00038904,7]
[357327551,1744007460140,-500.0,0.00038904,3]
[357327553,1744007460150,-500.0,0.00038904,7]
[357327555,1744007460160,-500.0,0.00038904,7]
[357327557,1744007460170,-754.1,0.00038904,7]
[357327559,1744007460180,-500.0,0.00038904,7]
[357327561,1744007460191,-500.0,0.00038904,7]
[357327564,1744007460201,-582.6,0.00038904,7]
[357327566,1744007460211,-726.72,0.00038904,7]
[357327568,1744007460221,-904.26,0.00038904,7]
[357327570,1744007460231,-500.0,0.00038904,7]
[357327572,1744007460241,-500.0,0.00038904,7]
[357327574,1744007460251,-853.72,0.00038904,7]
[357327576,1744007460262,-564.13,0.00038904,7]
[357327577,1744007460279,-17236.37,0.00038904,7]
[357327579,1744007460289,-1442.71,0.00038904,7]
[357327581,1744007460299,-520.98,0.00038904,7]
[357327583,1744007460309,-500.0,0.00038904,7]
[357327585,1744007460320,-3459.37,0.00038904,7]
[357327587,1744007460330,-500.0,0.00038904,7]
[357327589,1744007460340,-500.0,0.00038904,7]
[357327591,1744007460350,-500.0,0.00038904,7]
[357327593,1744007460360,-500.0,0.00038904,7]
[357327595,1744007460371,-500.0,0.00038904,7]
[357327598,1744007460381,-1195.35,0.00038904,7]
[357327599,1744007460391,-500.0,0.00038904,7]
[357327601,1744007460401,-543.33070815,0.00038904,7]
[357327604,1744007460411,-500.0,0.00038904,7]
[357327606,1744007460421,-325.2865497,0.00038904,7]
[357327608,1744007460430,-739.23,0.00038904,7]
[357327610,1744007460440,-500.0,0.00038904,7]
[357327612,1744007460450,-1037.89,0.00038904,7]
[357327614,1744007460460,-500.0,0.00038904,7]
[357327616,1744007460470,-931.74,0.00038904,7]
[357327618,1744007460480,-500.0,0.00038904,7]
[357327620,1744007460491,-275.49916555,0.00038904,7]
[357327622,1744007460500,-500.0,0.00038904,7]
[357327624,1744007460511,-500.0,0.00038904,7]
[357327626,1744007460531,-500.0,0.00038904,7]
[357327628,1744007460543,-500.0,0.00038904,7]
[357327630,1744007460554,-800.0,0.00038906,7]
[357327632,1744007460564,-150.18960921,0.00038973,5]
[357327634,1744007460577,-1022.76983852,0.00038982,30]
[357327636,1744007460588,-2000.0,0.00038991,4]
[357327638,1744007460598,-153.0,0.0003901,30]
[357327640,1744007460610,-153.0,0.0003901,30]
[357327642,1744007460620,-153.0,0.0003901,30]
[357327644,1744007460634,-153.0,0.0003901,30]
[357327647,1744007460653,-1008.94322377,0.00039059,6]
[357327649,1744007460672,-1208.75877963,0.00039141,15]
[357327652,1744007460688,-262.82526761,0.00039173,5]
[357327654,1744007460708,-500.0,0.00039177,2]
[357327657,1744007460724,-500.0,0.00039177,2]
[357327659,1744007460740,-500.0,0.00039177,2]
[357327662,1744007460756,-500.0,0.00039177,2]
[357327664,1744007460779,-500.0,0.00039177,2]
[357327667,1744007460793,-500.0,0.00039177,2]
[357327669,1744007460809,-500.0,0.00039177,2]
[357327672,1744007460823,-500.0,0.00039177,2]
[357327674,1744007460839,-500.0,0.00039177,2]
[357327677,1744007460855,-500.0,0.00039177,2]
[357327679,1744007460868,-500.0,0.00039177,2]
[357327681,1744007460883,-500.0,0.00039177,2]
[357327684,1744007460901,-500.0,0.00039177,2]
[357327687,1744007460916,-177.79358937,0.00039178,7]
[357327689,1744007460933,-167.524364,0.00039178,7]
[357327692,1744007460950,-500.0,0.00039178,7]
[357327694,1744007460963,-751.77005333,0.00039178,7]
[357327696,1744007460975,-500.0,0.00039178,7]
[357327699,1744007460988,-500.0,0.00039178,7]
[357327701,1744007461005,-500.0,0.00039178,7]
[357327704,1744007461023,-502.92912806,0.00039178,7]
[357327706,1744007461037,-500.0,0.00039178,7]
[357327708,1744007461051,-500.0,0.00039178,7]
[357327711,1744007461064,-150.88809076,0.00039178,7]
[357327713,1744007461076,-500.0,0.00039178,7]
[357327715,1744007461089,-151.68049729,0.00039178,7]
[357327717,1744007461101,-151.79044605,0.00039178,7]
[357327720,1744007461113,-500.0,0.00039178,7]
[357327722,1744007461126,-301.3545708,0.00039178,7]
[357327724,1744007461138,-500.0,0.00039178,7]
[357327726,1744007461151,-500.0,0.00039178,7]
[357327729,1744007461165,-812.34,0.00039178,7]
[357327731,1744007461177,-500.0,0.00039178,7]
[357327733,1744007461190,-729.06,0.00039178,7]
[357327735,1744007461203,-588.69753934,0.00039178,7]
[357327737,1744007461215,-500.0,0.00039178,7]
[357327740,1744007461227,-500.0,0.00039178,7]
[357327742,1744007461241,-500.0,0.00039178,7]
[357327744,1744007461253,-436.1722915,0.00039178,7]
[357327746,1744007461265,-500.0,0.00039178,7]
[357327749,1744007461282,-500.0,0.00039178,7]
[357327751,1744007461295,-500.0,0.00039178,7]
[357327753,1744007461308,-500.0,0.00039178,7]
[357327755,1744007461321,-500.0,0.00039178,7]
[357327758,1744007461334,-736.69,0.00039178,7]
[357327760,1744007461347,-500.0,0.00039178,7]
[357327762,1744007461360,-500.0,0.00039178,7]
[357327765,1744007461375,-500.0,0.00039178,7]
[357327767,1744007461387,-500.0,0.00039178,7]
[357327769,1744007461400,-500.0,0.00039178,7]
[357327771,1744007461413,-500.0,0.00039178,7]
[357327774,1744007461427,-500.0,0.00039178,7]
[357327776,1744007461439,-500.0,0.00039178,7]
[357327778,1744007461451,-500.0,0.00039178,7]
[357327780,1744007461465,-500.0,0.00039178,7]
[357327782,1744007461477,-500.0,0.00039178,7]
[357327783,1744007461490,-200.0,0.00039178,7]
[357327784,1744007461503,-500.0,0.00039178,7]
[357327785,1744007461520,-500.0,0.00039178,7]
[357327786,1744007461533,-500.0,0.00039178,7]
[357327787,1744007461546,-500.0,0.00039178,7]
[357327788,1744007461561,-221.22644411,0.00039178,7]
[357327789,1744007461574,-500.0,0.00039178,7]
[357327790,1744007461587,-500.0,0.00039178,7]
[357327791,1744007461601,-500.0,0.00039178,7]
[357327792,1744007461614,-500.0,0.00039178,7]
[357327793,1744007461629,-500.0,0.00039178,7]
[357327794,1744007461642,-867.45,0.00039178,7]
[357327796,1744007461660,-500.0,0.00039178,7]
[357327798,1744007461673,-500.0,0.00039178,7]
[357327800,1744007461686,-500.0,0.00039178,7]
[357327802,1744007461700,-500.0,0.00039178,7]
[357327805,1744007461713,-500.0,0.00039178,7]
[357327807,1744007461726,-500.0,0.00039178,7]
[357327809,1744007461739,-500.0,0.00039178,7]
[357327812,1744007461752,-500.0,0.00039178,7]
[357327814,1744007461765,-500.0,0.00039178,7]
[357327816,1744007461780,-500.0,0.00039178,7]
[357327819,1744007461793,-500.0,0.00039178,7]
[357327821,1744007461806,-500.0,0.00039178,7]
[357327823,1744007461819,-500.0,0.00039178,7]
[357327826,1744007461832,-500.0,0.00039178,7]
[357327828,1744007461845,-500.0,0.00039178,7]
[357327830,1744007461857,-500.0,0.00039178,7]
[357327832,1744007461870,-500.0,0.00039178,7]
[357327835,1744007461882,-500.0,0.00039178,7]
[357327837,1744007461895,-533.35,0.00039178,7]
[357327839,1744007461907,-906.27,0.00039178,7]
[357327842,1744007461919,-507.46647239,0.00039178,7]
[357327844,1744007461931,-500.0,0.00039178,7]
[357327846,1744007461944,-670.8,0.00039178,7]
[357327848,1744007461957,-500.0,0.00039178,7]
[357327851,1744007461969,-500.0,0.00039178,7]
[357327853,1744007461983,-500.0,0.00039178,7]
[357327855,1744007461996,-500.0,0.00039178,7]
[357327857,1744007462010,-500.0,0.00039178,7]
[357327860,1744007462028,-500.0,0.00039178,7]
[357327862,1744007462041,-500.0,0.00039178,7]
[357327864,1744007462055,-500.0,0.00039178,7]
[357327866,1744007462068,-500.0,0.00039178,7]
[357327869,1744007462081,-517.39,0.00039178,7]
[357327871,1744007462094,-500.0,0.00039178,7]
[357327873,1744007462106,-500.0,0.00039178,7]
[357327876,1744007462118,-363.21443692,0.00039178,7]
[357327878,1744007462131,-534.6,0.00039178,7]
[357327880,1744007462144,-500.0,0.00039178,7]
[357327882,1744007462157,-500.0,0.00039178,7]
[357327885,1744007462171,-500.0,0.00039178,7]
[357327887,1744007462183,-500.0,0.00039178,7]
[357327889,1744007462195,-1086.53,0.00039178,7]
[357327892,1744007462208,-500.0,0.00039178,7]
[357327894,1744007462219,-576.65,0.00039178,7]
[357327896,1744007462228,-500.0,0.00039178,7]
[357327898,1744007462238,-500.0,0.00039178,7]
[357327900,1744007462248,-500.0,0.00039178,7]
[357327902,1744007462258,-500.0,0.00039178,7]
[357327904,1744007462273,-500.0,0.00039178,7]
[357327906,1744007462283,-500.0,0.00039178,7]
[357327908,1744007462294,-512.02658237,0.00039178,7]